bitfinex-derivatives/quotes_SOLF0:USTF0_20241127
["timestamp","ask_amount","ask_price","bid_price","bid_amount"]
[1732716893033,2.1075,237.21,237.07,10.25378048]
[1732716893034,10.25378048,237.21,237.07,10.25378048]
[1732716893232,2.1077,237.19,237.12,2.1083]
[1732716893434,10.25378048,237.21,237.06,4.8784]
[1732716893736,17.63975946,237.2,237.06,4.8784]
[1732716893932,17.63975946,237.19,237.06,4.8784]
[1732716894135,9.39708285,237.18,237.06,4.8784]
[1732716894337,10.25378048,237.21,237.06,4.8784]
[1732716894641,17.64106876,237.2,237.06,4.8784]
[1732716894931,2.1078,237.17,237.1,2.1084]
[1732716895137,10.25378048,237.18,237.1,2.1084]
[1732716895334,17.64232119,237.17,237.06,4.8784]
[1732716895640,2.108,237.15,237.08,2.1086]
[1732716895836,10.25378048,237.18,237.06,4.8784]
[1732716896037,17.64306809,237.17,237.06,4.8784]
[1732716896238,19.75177337,237.16,237.06,4.8784]
[1732716896436,2.1079,237.16,237.06,4.8784]
[1732716897936,2.1079,237.16,237.09,2.1085]
[1732716898641,2.108,237.15,237.09,2.1085]
[1732716898843,2.108,237.15,237.08,2.1086]
[1732716900043,9.40197105,237.14,237.09,2.1085]
[1732716900236,2.1079,237.16,237.09,2.1085]
[1732716900438,24.20772637,237.15,237.09,2.1085]
[1732716900640,6.55896459,237.15,237.09,2.1085]
[1732716901346,8.66696459,237.15,237.09,2.1085]
[1732716901541,6.55896459,237.11,237.0,2.52]
[1732716901839,2.12272573,237.22,237.0,9.07896459]
[1732716901840,2.52,237.13,237.0,9.07896459]
[1732716902044,24.21059947,237.12,237.02,6.55896459]
[1732716902341,2.52,237.13,237.01,6.55896459]
[1732716902342,6.55896459,237.1,237.01,6.55896459]
[1732716902542,6.55896459,237.1,237.04,2.1089]
[1732716902846,6.55896459,237.1,237.01,6.55896459]
[1732716903237,11.18716459,237.13,237.05,6.55896459]
[1732716903545,9.40271917,237.12,237.05,6.55896459]
[1732716903745,6.55896459,237.11,237.0,2.52]
[1732716903942,6.55896459,237.11,237.03,6.55896459]
[1732716904546,2.52,237.13,237.0,2.52]
[1732716904547,11.18716459,237.13,237.06,2.1088]
[1732716904735,9.07896459,237.13,237.04,6.55896459]
[1732716904942,6.55896459,237.11,237.03,6.55896459]
[1732716905746,6.55896459,237.11,237.05,2.1088]
[1732716906448,6.55896459,237.07,236.98,0.16783]
[1732716906659,6.55896459,237.05,236.98,0.16783]
[1732716906947,2.11572493,237.15,236.99,6.55896459]
[1732716907141,2.11572493,237.15,236.98,0.16783]
[1732716907142,6.55896459,237.09,237.01,6.55896459]
[1732716907641,6.55896459,237.07,237.02,2.1092]
[1732716907842,6.55896459,237.07,236.98,6.72679459]
[1732716908040,2.06689605,237.1,237.01,2.1092]
[1732716908041,2.1086,237.08,237.01,2.1092]
[1732716908237,6.55896459,237.03,236.98,0.16783]
[1732716908543,6.55896459,236.99,236.98,0.16783]
[1732716908739,8.66836459,236.99,236.98,0.16783]
[1732716909037,8.66836459,236.99,236.87,2.59075267]
[1732716909038,6.55896459,236.99,236.87,6.55896459]
[1732716909240,6.55896459,236.95,236.87,6.55896459]
[1732716909639,4.6118,237.02,236.89,6.55896459]
[1732716909942,6.55896459,236.98,236.89,6.55896459]
[1732716910348,12.78216451,237.03,236.9,2.52]
[1732716910544,10.26216451,237.06,236.91,10.26216451]
[1732716910744,17.62955102,237.05,236.91,10.26216451]
[1732716911148,12.32528071,237.06,236.91,10.26216451]
[1732716911347,9.38944575,237.05,236.91,10.26216451]
[1732716911543,12.32528071,237.06,236.91,10.26216451]
[1732716911749,9.38896622,237.05,236.91,10.26216451]
[1732716911943,12.32528071,237.06,236.91,10.26216451]
[1732716912148,10.26216451,237.03,236.9,2.52]
[1732716912649,10.26216451,237.03,236.96,2.1097]
[1732716913056,10.26216451,237.03,236.9,2.52]
[1732716913249,10.26216451,237.03,236.96,2.1097]
[1732716913549,10.26216451,237.03,236.9,2.52]
[1732716913750,10.26216451,237.03,236.96,2.1097]
[1732716913955,2.52,237.05,236.91,10.26216451]
[1732716914356,4.1720162,237.06,236.98,2.1094]
[1732716915157,2.1089,237.05,236.98,2.1094]
[1732716916350,2.0631162,237.06,236.98,2.1094]
[1732716916552,4.1719162,237.06,236.98,2.1094]
[1732716916754,4.1719162,237.06,236.97,2.1096]
[1732716916954,4.1719162,237.06,236.94,10.26216451]
[1732716917149,2.0631162,237.06,236.94,10.26216451]
[1732716917454,2.52,237.07,237.0,2.1093]
[1732716918056,2.1228023,237.06,237.0,2.1093]
[1732716918457,2.1228023,237.06,237.01,2.1092]
[1732716918652,2.1228023,237.06,236.94,10.26216451]
[1732716918855,2.1092,237.02,236.91,10.26216451]
[1732716919160,2.1092,237.02,236.96,2.1097]
[1732716919560,2.11562711,237.02,236.98,2.1095]
[1732716919760,2.52,237.07,236.94,10.26216451]
[1732716920355,10.26216451,237.24,236.97,10.26216451]
[1732716920356,10.26216451,237.12,236.97,10.26216451]
[1732716920555,4.61536773,237.11,236.97,10.26216451]
[1732716920760,4.61536773,237.11,236.98,4.5313]
[1732716920960,6.72376773,237.11,237.04,2.1089]
[1732716921461,9.37388773,237.1,236.98,4.5313]
[1732716921653,9.37406882,237.09,236.98,4.5313]
[1732716921854,4.61536773,237.11,236.98,4.5313]
[1732716922049,6.7179,237.17,237.04,10.26216451]
[1732716922254,17.59457517,237.16,237.04,10.26216451]
[1732716922449,9.37291926,237.15,237.04,10.26216451]
[1732716922661,2.108,237.15,237.07,2.1086]
[1732716922859,9.37263117,237.14,236.99,2.1635]
[1732716923166,6.7179,237.17,237.02,10.26216451]
[1732716923365,17.5935729,237.16,237.02,10.26216451]
[1732716923556,17.5935729,237.15,237.02,10.26216451]
[1732716923752,2.1083,237.13,237.06,2.1088]
[1732716923959,10.26216451,237.15,237.06,2.1088]
[1732716924159,17.59390908,237.14,237.06,2.1088]
[1732716924357,10.26216451,237.15,236.99,12.42566451]
[1732716924358,2.1085,237.1,236.99,12.42566451]
[1732716924858,2.102976,237.11,236.99,12.42566451]
[1732716925160,6.7179,237.17,237.02,10.26216451]
[1732716925360,9.37147103,237.16,237.02,10.26216451]
[1732716925656,2.1079,237.16,237.02,10.26216451]
[1732716926157,6.7179,237.17,237.02,10.26216451]
[1732716926158,16.98006451,237.17,237.02,10.26216451]
[1732716926364,2.108,237.15,237.06,2.1088]
[1732716926559,2.108,237.15,237.02,10.26216451]
[1732716926759,16.98006451,237.17,237.02,10.26216451]
[1732716926960,16.98006451,237.17,237.06,2.1088]
[1732716926961,2.1082,237.13,237.06,2.1088]
[1732716928366,10.26216451,237.14,236.99,12.42566451]
[1732716928667,2.1084,237.11,237.05,2.1089]
[1732716929362,12.3432,237.11,236.99,2.1635]
[1732716929559,10.26216451,237.11,236.99,2.1635]
[1732716929960,10.26216451,237.11,236.98,7.0513]
[1732716930165,9.37342507,237.1,236.98,7.0513]
[1732716930361,10.26216451,237.11,236.98,7.0513]
[1732716930665,10.26216451,237.11,236.93,10.26216451]
[1732716930666,10.26216451,237.08,236.93,10.26216451]
[1732716931061,2.1089,237.05,236.93,2.52]
[1732716931258,12.78216451,237.08,236.93,12.78216451]
[1732716931464,4.6287,237.08,237.02,2.1092]
[1732716931659,2.0970887,237.11,236.96,10.26216451]
[1732716931858,2.5,237.13,236.99,10.26216451]
[1732716932062,2.5,237.13,237.06,2.1088]
[1732716932063,4.6083,237.13,237.06,2.1088]
[1732716932265,4.6083,237.13,237.0,7.0171]
[1732716932457,2.5,237.13,237.02,10.26216451]
[1732716932759,10.26216451,237.18,237.05,10.26216451]
[1732716932965,10.26216451,237.18,237.06,2.5]
[1732716933161,10.26216451,237.21,237.06,2.5]
[1732716933356,17.59113514,237.2,237.06,2.5]
[1732716933562,17.59113514,237.19,237.06,2.5]
[1732716933760,2.1078,237.17,237.06,2.5]
[1732716934566,10.26216451,237.18,237.06,2.5]
[1732716934766,2.1079,237.16,237.06,2.5]
[1732716934969,10.26216451,237.18,237.1,2.1084]
[1732716935362,2.1079,237.16,237.1,2.1084]
[1732716935568,2.1079,237.16,236.92,34.16589114]
[1732716935569,12.41098543,237.15,237.04,2.5]
[1732716935868,10.26216451,237.15,237.02,2.5]
[1732716936066,10.26216451,237.15,237.07,2.1087]
[1732716936362,2.1081,237.14,237.07,2.1087]
[1732716936565,2.1081,237.14,237.05,2.1088]
[1732716936765,2.1081,237.14,237.02,2.5]
[1732716936964,2.06528144,237.14,237.02,2.5]
[1732716937160,10.26216451,237.12,237.02,2.5]
[1732716937365,10.26216451,237.12,236.97,10.26216451]
[1732716937564,10.26216451,237.12,236.98,2.5]
[1732716937762,10.26216451,237.09,236.98,2.5]
[1732716938869,12.35070688,237.09,236.98,2.5]
[1732716939666,10.26216451,237.09,236.98,2.5]
[1732716940060,12.37076451,237.09,237.02,2.1091]
[1732716940368,10.26216451,237.09,236.98,2.5]
[1732716940664,10.26216451,237.09,237.0,2.1093]
[1732716940871,10.26216451,237.09,236.98,2.5]
[1732716941469,14.8096333,237.27,237.04,10.26216451]
[1732716941668,10.26216451,237.19,237.05,2.5]
[1732716941866,2.1078,237.17,237.11,2.1083]
[1732716942063,17.61621241,237.16,237.11,2.1083]
[1732716942264,2.1078,237.17,237.11,2.1083]
[1732716942669,2.1078,237.17,237.05,2.5]
[1732716943062,2.1078,237.17,237.11,2.1083]
[1732716943264,2.1078,237.17,237.05,2.5]
[1732716943463,2.1078,237.17,237.05,6.9495]
[1732716943670,2.1079,237.16,237.11,2.1083]
[1732716944370,2.1082,237.14,237.08,2.1086]
[1732716944571,10.26216451,237.16,237.05,2.5]
[1732716944970,9.38421745,237.15,237.05,2.5]
[1732716945168,2.09342723,237.15,237.05,2.5]
[1732716945676,10.26216451,237.13,237.05,2.5]
[1732716945972,2.1083,237.12,237.06,2.1088]
[1732716946866,2.1083,237.12,237.07,2.1087]
[1732716947570,12.37036451,237.13,237.07,2.1087]
[1732716948575,2.1083,237.12,237.07,2.1087]
[1732716949678,2.1083,237.12,237.06,2.1088]
[1732716949871,10.26216451,237.13,237.0,2.5]
[1732716950174,2.1085,237.09,237.0,2.5]
[1732716950381,2.1085,237.09,237.03,2.109]
[1732716950673,10.26216451,237.07,236.94,2.5]
[1732716951575,2.1089,237.05,236.98,2.1095]
[1732716951773,10.26216451,237.07,236.94,2.5]
[1732716952175,2.1089,237.06,236.98,2.1094]
[1732716952370,2.1089,237.06,236.94,2.5]
[1732716952771,2.1089,237.06,236.98,2.1094]
[1732716954471,2.109,237.05,236.98,2.1094]
[1732716954874,10.26216451,237.07,236.97,2.1096]
[1732716955080,2.1088,237.06,236.93,8.9876]
[1732716955678,2.1089,237.05,236.98,2.1094]
[1732716956876,2.1094,237.0,236.92,2.11]
[1732716957079,4.21438649,237.0,236.92,2.11]
[1732716957277,2.10498649,237.0,236.9,2.5]
[1732716957481,2.5,237.02,236.9,2.5]
[1732716958182,4.6092,237.02,236.9,2.5]
[1732716959077,2.1092,237.01,236.9,2.5]
[1732716959686,2.5,237.02,236.95,2.1098]
[1732716959876,4.6092,237.02,236.95,2.1098]
[1732716960079,2.5,237.02,236.95,2.1098]
[1732716960776,10.26216451,237.04,236.9,2.5]
[1732716961083,12.76216451,237.07,236.9,2.5]
[1732716961283,2.109,237.05,236.9,2.5]
[1732716961483,12.76216451,237.07,236.99,2.1094]
[1732716961678,17.63181762,237.06,236.99,2.1094]
[1732716961983,17.63186939,237.05,236.99,2.1094]
[1732716962175,12.76216451,237.07,236.99,2.1094]
[1732716962376,2.109,237.05,236.9,2.5]
[1732716962582,12.37116451,237.05,236.9,12.76216451]
[1732716962984,9.39239408,237.04,236.9,2.5]
[1732716963278,10.26216451,237.05,236.9,2.5]
[1732716963477,9.39148528,237.04,236.9,2.5]
[1732716963673,22.92216451,237.12,236.96,10.26216451]
[1732716963674,2.44,237.12,236.96,10.26216451]
[1732716963876,9.39072762,237.11,236.99,10.26216451]
[1732716964081,9.39072762,237.11,236.97,6.8944]
[1732716964082,2.44,237.21,237.05,10.26216451]
[1732716964288,17.62422236,237.2,237.08,10.26216451]
[1732716964488,17.62422236,237.19,237.11,10.26216451]
[1732716964682,4.2565333,237.27,237.12,2.44]
[1732716964883,17.61855515,237.26,237.12,2.44]
[1732716965088,8.2332054,237.25,237.14,10.26216451]
[1732716965379,2.12780438,237.29,237.14,10.26216451]
[1732716965589,8.22750468,237.28,237.17,10.26216451]
[1732716965787,8.22750468,237.28,237.18,2.44]
[1732716965788,2.06469422,237.28,237.18,2.44]
[1732716965987,2.44,237.3,237.21,2.1075]
[1732716966994,2.09634003,237.29,237.22,2.1074]
[1732716967996,10.26216451,237.23,237.1,2.1343]
[1732716968193,10.26216451,237.23,237.14,2.1081]
[1732716968397,10.26216451,237.2,237.1,2.1343]
[1732716968797,10.26216451,237.2,237.12,2.1082]
[1732716969099,10.26216451,237.2,237.1,2.1343]
[1732716969300,10.26216451,237.2,237.15,2.108]
[1732716970399,10.26216451,237.2,237.13,2.1081]
[1732716970702,10.26216451,237.2,237.1,4.5743]
[1732716970897,10.26216451,237.14,237.09,2.1085]
[1732716971096,10.26216451,237.14,237.07,6.9321]
[1732716971498,10.26216451,237.14,237.07,9.0407]
[1732716972002,10.26216451,237.14,237.08,2.1086]
[1732716973200,10.26216451,237.14,237.09,2.1085]
[1732716973594,10.26216451,237.14,237.07,4.4921]
[1732716973796,10.26216451,237.14,237.07,6.6008]
[1732716974000,10.26216451,237.14,237.07,4.4921]
[1732716977093,12.70216451,237.17,237.07,4.4921]
[1732716978602,10.26216451,237.2,237.07,4.4921]
[1732716978803,12.66,237.33,237.07,4.4921]
[1732716978804,12.66,237.33,237.1,10.26216451]
[1732716978997,10.26216451,237.36,237.08,2.222]
[1732716978998,10.26216451,237.27,237.13,10.26216451]
[1732716979197,8.21155659,237.26,237.13,10.26216451]
[1732716979400,10.26216451,237.27,237.2,2.1076]
[1732716979596,10.26216451,237.27,237.18,2.44]
[1732716979907,10.26216451,237.3,237.23,2.1073]
[1732716980701,10.26216451,237.33,237.19,14.61326451]
[1732716980903,10.26216451,237.36,237.2,2.1666]
[1732716981103,8.20341856,237.35,237.2,2.1666]
[1732716981309,2.1063,237.35,237.27,2.1069]
[1732716981500,12.40868973,237.36,237.27,2.1069]
[1732716981700,2.44,237.39,237.25,2.44]
[1732716981902,10.26216451,237.35,237.25,2.44]
[1732716982300,10.26216451,237.38,237.25,2.44]
[1732716982901,10.26216451,237.38,237.31,2.1065]
[1732716982902,12.36816451,237.38,237.31,2.1065]
[1732716983103,10.26216451,237.38,237.25,2.44]
[1732716983309,10.26216451,237.38,237.28,2.1068]
[1732716983510,10.26216451,237.38,237.25,2.44]
[1732716984007,10.26216451,237.38,237.31,2.1066]
[1732716984410,10.26216451,237.38,237.25,2.44]
[1732716984611,2.1061,237.37,237.25,2.44]
[1732716985110,10.26216451,237.32,237.2,2.1666]
[1732716985310,10.26216451,237.32,237.2,4.6066]
[1732716986310,16.37993734,237.33,237.2,4.6066]
[1732716986922,2.1066,237.31,237.2,4.6066]
[1732716987911,2.1066,237.31,237.24,2.1072]
[1732716988307,2.1068,237.29,237.21,2.44]
[1732716988514,16.37993734,237.33,237.21,2.44]
[1732716989118,2.1068,237.29,237.21,2.44]
[1732716989612,16.37993734,237.33,237.21,2.44]
[1732716989613,16.37993734,237.33,237.21,2.1075]
[1732716989814,16.37993734,237.33,237.19,4.3511]
[1732716990608,2.1068,237.3,237.19,4.3511]
[1732716990813,16.37993734,237.33,237.19,4.3511]
[1732716991409,2.1068,237.29,237.22,2.1074]
[1732716991614,16.37993734,237.33,237.22,2.1074]
[1732716992010,16.37993734,237.33,237.18,2.44]
[1732716992011,2.107,237.27,237.21,2.1075]
[1732716992311,2.44,237.3,237.18,2.44]
[1732716992517,2.107,237.26,237.21,2.1075]
[1732716992817,2.44,237.3,237.21,2.1075]
[1732716993017,2.44,237.3,237.18,2.44]
[1732716993212,16.37993734,237.29,237.15,4.3779]
[1732716993719,16.37993734,237.29,237.16,2.1079]
[1732716993919,2.44,237.3,237.05,16.37993734]
[1732716993920,16.37993734,237.25,237.08,6.6238]
[1732716994216,2.1079,237.16,237.1,2.1084]
[1732716994420,2.15360806,237.19,237.05,2.44]
[1732716994617,16.37993734,237.17,237.02,4.4672]
[1732716995015,16.37993734,237.17,237.02,6.9072]
[1732716996222,4.4882,237.19,237.02,6.9072]
[1732716996515,2.1077,237.18,237.07,2.1087]
[1732716996720,2.1077,237.18,237.02,6.9072]
[1732716996923,4.4882,237.19,237.02,6.9072]
[1732716997720,6.5959,237.19,237.02,6.9072]
[1732716998017,2.215,237.19,237.02,6.9072]
[1732716998322,2.44,237.2,237.02,6.9072]
[1732716999222,2.44,237.2,237.13,2.1082]
[1732716999411,2.44,237.2,237.08,2.44]
[1732717000421,4.5476,237.2,237.13,2.1082]
[1732717000815,2.1077,237.19,237.11,2.1083]
[1732717001017,2.1077,237.19,237.08,2.44]
[1732717001922,2.1077,237.19,237.12,2.1082]
[1732717002128,20.92753734,237.2,237.08,2.44]
[1732717002318,18.81993734,237.2,237.08,2.44]
[1732717004118,18.81993734,237.2,237.12,2.1082]
[1732717004119,2.1077,237.19,237.12,2.1082]
[1732717004323,2.1077,237.19,237.08,2.44]
[1732717004624,2.1077,237.19,237.13,2.1082]
[1732717004825,18.81993734,237.2,237.08,2.44]
[1732717005727,16.37993734,237.16,237.06,2.1087]
[1732717006025,16.37993734,237.12,236.98,2.44]
[1732717006221,2.44,237.11,236.97,2.44]
[1732717006424,10.25831583,237.07,236.97,2.44]
[1732717006627,10.25831583,237.07,237.0,2.1093]
[1732717006929,10.25831583,237.07,236.97,2.44]
[1732717007130,10.25831583,237.07,237.0,2.1093]
[1732717007334,10.25831583,237.07,236.97,2.44]
[1732717007724,12.36711583,237.07,236.97,2.44]
[1732717008428,2.1088,237.06,237.0,2.1093]
[1732717009120,10.25831583,237.1,236.97,2.44]
[1732717009926,2.1086,237.09,237.0,2.1093]
[1732717010126,2.1086,237.09,236.97,2.44]
[1732717010127,2.44,237.11,236.97,12.69831583]
[1732717010326,10.25831583,237.13,236.97,12.69831583]
[1732717010532,2.1084,237.11,237.05,2.1089]
[1732717010935,10.25831583,237.13,236.97,12.69831583]
[1732717011135,2.1083,237.12,237.06,2.1088]
[1732717011432,10.25831583,237.13,236.97,2.44]
[1732717011632,6.849,237.2,237.03,10.25831583]
[1732717011633,10.25831583,237.16,237.03,10.25831583]
[1732717011932,10.25831583,237.19,237.04,4.6414]
[1732717012133,10.25831583,237.19,237.04,6.8854]
[1732717012527,10.25831583,237.19,237.06,10.25831583]
[1732717012723,10.25831583,237.19,237.13,2.1081]
[1732717012925,10.25831583,237.24,237.1,2.44]
[1732717013124,10.25831583,237.24,237.11,2.44]
[1732717014431,2.1075,237.21,237.14,2.1081]
[1732717014933,2.1075,237.21,237.13,2.1081]
[1732717015930,12.36581583,237.21,237.13,2.1081]
[1732717016136,10.25831583,237.21,237.11,4.5483]
[1732717017338,10.25831583,237.21,237.14,2.108]
[1732717018136,10.25831583,237.21,237.15,2.108]
[1732717018340,10.25831583,237.21,237.11,2.44]
[1732717018540,12.36581583,237.21,237.11,2.44]
[1732717019136,2.1076,237.2,237.14,2.1081]
[1732717019336,10.25831583,237.18,237.07,2.44]
[1732717019638,10.25831583,237.15,237.05,2.3267]
[1732717019834,10.25831583,237.15,237.05,4.7667]
[1732717020232,10.25831583,237.15,237.08,2.1086]
[1732717020436,10.25831583,237.15,237.05,4.7667]
[1732717020937,12.36641583,237.15,237.05,4.7667]
[1732717021137,10.25831583,237.15,237.05,4.7667]
[1732717021337,2.1082,237.14,237.07,2.1087]
[1732717021533,2.1082,237.14,237.05,4.7667]
[1732717021941,2.1082,237.14,237.08,2.1086]
[1732717022342,2.1084,237.11,236.97,10.25831583]
[1732717022539,10.25831583,237.09,236.97,2.44]
[1732717022840,10.25831583,237.09,236.96,2.44]
[1732717023435,10.25831583,237.06,236.95,2.44]
[1732717023832,2.109,237.04,236.97,2.1096]
[1732717024035,10.25831583,237.06,236.97,2.1096]
[1732717024232,10.25831583,237.06,236.95,2.44]
[1732717024438,10.25831583,237.06,236.97,2.1096]
[1732717024635,10.25831583,237.06,236.95,2.44]
[1732717025642,10.25831583,237.03,236.93,4.5853]
[1732717025941,2.11086241,237.02,236.93,4.5853]
[1732717026543,2.109,237.05,236.98,2.1095]
[1732717026843,2.11107345,237.04,236.93,4.5853]
[1732717027044,10.25831583,237.06,236.93,4.5853]
[1732717027538,2.109,237.04,236.97,2.1095]
[1732717027843,4.2591166,237.04,236.93,4.5853]
[1732717028040,2.109,237.04,236.93,4.5853]
[1732717028643,4.25233641,237.04,236.93,4.5853]
[1732717028844,2.109,237.04,236.93,4.5853]
[1732717029139,10.25831583,237.06,236.93,14.84361583]
[1732717029348,10.25831583,237.12,236.96,10.25831583]
[1732717029550,10.25831583,237.12,237.01,2.1092]
[1732717029846,10.25831583,237.12,236.97,2.44]
[1732717030040,10.25831583,237.12,237.04,2.1089]
[1732717030242,4.2270397,237.11,236.97,2.44]
[1732717030440,2.1186397,237.11,236.97,2.44]
[1732717030638,2.1085,237.1,236.97,2.44]
[1732717030835,10.25831583,237.09,236.97,2.44]
[1732717031346,2.1087,237.07,236.99,2.1093]
[1732717031546,10.25831583,237.06,236.93,4.5853]
[1732717031747,10.25831583,237.06,236.93,7.0253]
[1732717031947,2.1089,237.05,236.98,2.1095]
[1732717032148,10.25831583,237.06,236.93,7.0253]
[1732717032546,12.36711583,237.06,236.93,7.0253]
[1732717032746,10.25831583,237.06,236.93,7.0253]
[1732717033149,2.1089,237.05,236.98,2.1095]
[1732717033449,10.25831583,237.06,236.93,7.0253]
[1732717033646,12.36721583,237.06,236.93,7.0253]
[1732717034151,2.1089,237.05,236.93,7.0253]
[1732717034746,2.1091,237.03,236.97,2.1095]
[1732717035048,10.25831583,237.06,236.93,7.0253]
[1732717035748,10.25831583,237.06,236.99,2.1094]
[1732717035749,2.1089,237.05,236.99,2.1094]
[1732717035946,10.25831583,237.06,236.99,2.1094]
[1732717036141,10.25831583,237.06,236.93,7.0253]
[1732717036550,12.36711583,237.06,236.93,7.0253]
[1732717037949,12.36711583,237.06,236.99,2.1094]
[1732717038148,10.25831583,237.06,236.93,7.0253]
[1732717038350,2.44,237.07,236.93,17.28361583]
[1732717038547,10.25831583,237.09,237.02,2.1091]
[1732717038747,12.36691583,237.09,237.02,2.1091]
[1732717039158,12.36691583,237.09,236.93,17.28361583]
[1732717039854,2.1087,237.08,237.02,2.1091]
[1732717040257,10.25831583,237.09,237.02,2.1091]
[1732717040461,10.25831583,237.09,237.03,2.109]
[1732717040656,10.25831583,237.09,236.93,17.28361583]
[1732717041059,2.1087,237.08,237.03,2.109]
[1732717041555,10.25831583,237.09,237.04,2.1089]
[1732717041556,12.36691583,237.09,237.04,2.1089]
[1732717041956,10.25831583,237.09,237.04,2.1089]
[1732717042153,10.25831583,237.09,237.05,2.1088]
[1732717042357,10.25831583,237.09,236.93,17.28361583]
[1732717042358,2.44,237.11,237.0,2.44]
[1732717042759,12.36661583,237.12,237.07,2.1086]
[1732717042959,2.16142173,237.11,237.07,2.1086]
[1732717043357,2.16142173,237.11,237.0,2.44]
[1732717045266,4.26982173,237.11,237.05,2.1088]
[1732717045765,2.16142173,237.11,237.0,2.44]
[1732717046061,2.16142173,237.11,237.06,2.1088]
[1732717047259,4.26982173,237.11,237.06,2.1088]
[1732717047459,10.25831583,237.09,237.0,2.44]
[1732717048063,12.36681583,237.09,237.03,2.109]
[1732717048361,10.25831583,237.09,237.0,2.44]
[1732717048565,2.16142173,237.11,237.0,2.44]
[1732717048758,2.3151,237.21,237.09,2.1085]
[1732717048759,2.108,237.15,237.09,2.1085]
[1732717049858,10.25831583,237.16,237.12,2.1082]
[1732717050260,10.25831583,237.16,237.07,2.44]
[1732717050858,14.85147477,237.19,237.07,2.44]
[1732717051266,10.25831583,237.19,237.07,2.44]
[1732717051475,12.36601583,237.19,237.07,2.44]
[1732717051962,12.36601583,237.19,237.12,2.1082]
[1732717052767,10.25831583,237.19,237.12,2.1082]
[1732717052967,12.36601583,237.19,237.07,2.44]
[1732717053766,12.36601583,237.19,237.12,2.1082]
[1732717053966,12.36601583,237.19,237.07,2.44]
[1732717054366,12.36601583,237.19,237.13,2.1081]
[1732717054367,10.25831583,237.19,237.13,2.1081]
[1732717054770,10.25831583,237.19,237.07,2.44]
[1732717054971,10.25831583,237.19,237.14,2.1081]
[1732717055469,10.25831583,237.19,237.07,2.44]
[1732717055670,10.25831583,237.19,237.15,2.108]
[1732717055970,4.3696,237.26,237.12,10.25831583]
[1732717056175,8.22513773,237.25,237.13,2.44]
[1732717056370,10.25831583,237.27,237.13,6.7669]
[1732717056575,10.25831583,237.27,237.14,2.2796]
[1732717056778,10.25831583,237.3,237.14,2.2796]
[1732717057077,10.25831583,237.3,237.15,10.25831583]
[1732717057078,8.22237442,237.29,237.15,10.25831583]
[1732717057279,10.25831583,237.3,237.15,10.25831583]
[1732717057575,8.21832155,237.29,237.23,2.1072]
[1732717057770,10.25831583,237.3,237.2,2.44]
[1732717057972,8.21837161,237.29,237.2,2.44]
[1732717058169,10.25831583,237.27,237.2,2.44]
[1732717058373,10.25831583,237.27,237.22,2.1074]
[1732717059175,10.25831583,237.24,237.15,2.44]
[1732717059371,10.25831583,237.21,236.99,73.62964752]
[1732717059577,2.1077,237.19,237.04,10.25831583]
[1732717059775,10.25831583,237.18,237.04,10.25831583]
[1732717060582,10.25831583,237.18,237.12,2.1082]
[1732717062678,12.36611583,237.18,237.12,2.1082]
[1732717063069,10.25831583,237.18,237.12,2.1082]
[1732717063474,12.36611583,237.18,237.12,2.1082]
[1732717064373,10.25831583,237.18,237.12,2.1082]
[1732717064572,10.25831583,237.18,237.04,10.25831583]
[1732717064975,12.36601583,237.18,237.04,10.25831583]
[1732717065774,12.36601583,237.18,237.08,2.1086]
[1732717065979,2.11345375,237.21,237.04,10.25831583]
[1732717066279,10.25831583,237.24,237.07,10.25831583]
[1732717066477,12.69831583,237.24,237.16,2.1078]
[1732717066888,2.1074,237.23,237.16,2.1078]
[1732717067181,12.69831583,237.24,237.16,2.1078]
[1732717067979,2.1074,237.22,237.16,2.1078]
[1732717068179,2.13540915,237.21,237.15,2.108]
[1732717068387,12.69831583,237.24,237.1,2.44]
[1732717068883,2.1074,237.22,237.1,2.44]